[Event "Elitserien 2019/2020, round 7-9"]
[Site "Elite stadshotellet, Kungsgatan 6, Vaxjo, Sweden"]
[Date "2020.10.18"]
[Round "3.8"]
[White "Wenzel, Birger"]
[Black "Holst, Conny"]
[Result "0-1"]
[TimeControl "90 minutes for 40 moves + 30 minutes for the rest of the game + 30 seconds per move from move one."]
[BlackTitle "FM"]
[WhiteFideId "4657497"]
[BlackFideId "1701428"]
[WhiteElo "2059"]
[BlackElo "2128"]

1. c4 {[%clk 01:30:57]} {[%emt 00:00:02]} Nf6 {[%clk 01:30:30]} {[%emt
00:00:28]} 2. g3 {[%clk 01:31:21]} {[%emt 00:00:08]} e5 {[%clk 01:30:50]}
{[%emt 00:00:10]} 3. Bg2 {[%clk 01:31:44]} {[%emt 00:00:07]} h6 {[%clk
01:30:57]} {[%emt 00:00:23]} 4. Nf3 {[%clk 01:32:09]} {[%emt 00:00:05]} e4
{[%clk 01:29:52]} {[%emt 00:01:35]} 5. Nd4 {[%clk 01:32:30]} {[%emt 00:00:09]}
Nc6 {[%clk 01:30:09]} {[%emt 00:00:12]} 6. Nc2 {[%clk 01:32:52]} {[%emt
00:00:07]} Ne5 {[%clk 01:27:15]} {[%emt 00:03:25]} 7. b3 {[%clk 01:31:24]}
{[%emt 00:01:57]} d6 {[%clk 01:20:38]} {[%emt 00:07:09]} 8. Nc3 {[%clk
01:18:01]} {[%emt 00:13:53]} Bf5 {[%clk 01:18:36]} {[%emt 00:02:31]} 9. O-O
{[%clk 01:08:38]} {[%emt 00:09:53]} c6 {[%clk 01:15:46]} {[%emt 00:03:20]} 10.
Bb2 {[%clk 01:04:03]} {[%emt 00:05:04]} Be7 {[%clk 01:11:52]} {[%emt 00:04:25]}
11. c5 {[%clk 00:47:30]} {[%emt 00:17:02]} O-O {[%clk 01:04:27]} {[%emt
00:07:56]} 12. Ne3 {[%clk 00:43:33]} {[%emt 00:04:27]} Bg6 {[%clk 01:03:41]}
{[%emt 00:01:16]} 13. Na4 {[%clk 00:34:29]} {[%emt 00:09:33]} Ned7 {[%clk
00:53:33]} {[%emt 00:10:39]} 14. cxd6 {[%clk 00:32:49]} {[%emt 00:02:10]} Bxd6
{[%clk 00:51:33]} {[%emt 00:02:30]} 15. Rc1 {[%clk 00:27:32]} {[%emt 00:05:47]}
Re8 {[%clk 00:49:57]} {[%emt 00:02:06]} 16. Bh3 {[%clk 00:24:12]} {[%emt
00:03:49]} Be5 {[%clk 00:34:16]} {[%emt 00:16:12]} 17. Ba3 {[%clk 00:22:35]}
{[%emt 00:02:06]} Nb6 {[%clk 00:26:15]} {[%emt 00:08:32]} 18. Nc5 {[%clk
00:19:20]} {[%emt 00:03:44]} Qc7 {[%clk 00:25:25]} {[%emt 00:01:23]} 19. Rc2
{[%clk 00:16:13]} {[%emt 00:03:36]} Rad8 {[%clk 00:24:37]} {[%emt 00:01:17]} 20.
Qc1 {[%clk 00:16:13]} {[%emt 00:00:30]} Kh7 {[%clk 00:22:51]} {[%emt 00:02:17]}
21. Nf5 {[%clk 00:14:54]} {[%emt 00:01:46]} Qc8 {[%clk 00:21:09]} {[%emt
00:02:15]} 22. f4 {[%clk 00:11:50]} {[%emt 00:03:32]} Bd4+ {[%clk 00:16:53]}
{[%emt 00:04:47]} 23. Nxd4 {[%clk 00:10:12]} {[%emt 00:02:08]} Qxh3 {[%clk
00:17:06]} {[%emt 00:00:18]} 24. e3 {[%clk 00:10:34]} {[%emt 00:00:07]} Ng4
{[%clk 00:16:06]} {[%emt 00:01:31]} 25. d3 {[%clk 00:10:44]} {[%emt 00:00:19]}
exd3 {[%clk 00:16:11]} {[%emt 00:00:25]} 26. f5 {[%clk 00:10:33]} {[%emt
00:00:40]} dxc2 {[%clk 00:14:15]} {[%emt 00:02:27]} 27. fxg6+ {[%clk 00:09:52]}
{[%emt 00:01:10]} fxg6 {[%clk 00:14:19]} {[%emt 00:00:26]} 28. Qxc2 {[%clk
00:09:06]} {[%emt 00:01:16]} Qxf1+ {[%clk 00:14:26]} {[%emt 00:00:24]} 0-1